Cogmind - Beta 15 @@@ ROGUE MODE // 2025.05.26 @ 01:13:47 Player: Zaros426 Result: Destroyed by EU-7TM(R) with Subdweller Laser Performance ------------- Evolutions (0) 0 Regions Visited (2) 400 Robots Destroyed (41) 205 Value Destroyed (990) 990 Prototype IDs (0) 0 Alien Tech Used (0) 0 Bonus (-7) -7 TOTAL SCORE: 1588 Bonus ------- Friendly Fire -7 Cogmind --------- Core Integrity 0/250 Matter 224/300 Energy 100/100 System Corruption 0% Temperature Cool (6) Movement Rolling (110) Location -10/Subcaves Parts ------- > --- POWER (1) -------- (None) > --- PROPULSION (2) --- Subdweller Monowheel Subdweller Monowheel > --- UTILITY (2) ------ Large Storage Unit Makeshift Light Armor Plating > --- WEAPON (2) ------- Autogun Autogun > --- INVENTORY (15) --- Subdweller Monowheel Cooling System Cooling System High-capacity Matter Pod (200) Seismic Detector Beam Cannon Beam Cannon Subdweller Machine Gun EMP Blaster EMP Blaster EMP Blaster Grenade Launcher Mining Laser Peak State ------------ > --- POWER ------------ Subdweller Power Source > --- PROPULSION ------- Light Treads Subdweller Monowheel > --- UTILITY ---------- Large Storage Unit Makeshift Light Armor Plating > --- WEAPON ----------- Subdweller Machine Gun Subdweller Machine Gun > --- INVENTORY -------- Cooling System Cooling System High-capacity Matter Pod Seismic Detector Beam Cannon Beam Cannon Autogun Autogun EMP Blaster EMP Blaster EMP Blaster Grenade Launcher Mining Laser [Rating: 16] Favorites ----------- Power Ion Engine Engine Ion Engine Propulsion Light Treads Treads Light Treads Wheel Subdweller Monowheel Utility Targeting Computer Storage Large Storage Unit Processor Targeting Computer Protection Makeshift Light Armor Plating Weapon Subdweller Machine Gun Energy Gun Particle Gun Energy Cannon Beam Cannon Ballistic Gun Subdweller Machine Gun Launcher Grenade Launcher Special Weapon Mining Laser Build | -11 -10 -10 ------- Run | Yrd Mat Sub Slots Evolved . | . . . Power . | . . . Propulsion . | . . . Utility . | . . . Weapon . | . . . Parts Attached 30 | 7 12 11 Power 3 | 1 1 1 Engine 3 | 1 1 1 Core . | . . . Reactor . | . . . Propulsion 7 | 2 1 4 Treads 5 | 2 1 2 Leg . | . . . Wheel 2 | . . 2 Hover . | . . . Flight . | . . . Utility 5 | 1 3 1 Device . | . . . Storage 3 | 1 2 . Processor 1 | . 1 . Hackware . | . . . Protection 1 | . . 1 Artifact . | . . . Weapon 15 | 3 7 5 Energy Gun 3 | 2 1 . Energy Cannon 2 | . 2 . Ballistic Gun 8 | 1 2 5 Ballistic Cannon . | . . . Launcher 1 | . 1 . Special Weapon 1 | . 1 . Impact Weapon . | . . . Slashing Weapon . | . . . Piercing Weapon . | . . . Special Melee Weapon . | . . . Unidentified Prototypes . | . . . Parts Lost 9 | . 1 8 Power 2 | . . 2 Propulsion 4 | . . 4 Utility . | . . . Weapon 3 | . 1 2 Highest Loss Streak 3 | . 1 3 To Critical Strikes . | . . . Average Backups 11 | 1 10 13 Power . | . . . Propulsion 1 | . 2 . Utility 4 | . 3 4 Weapon 5 | 1 4 8 Tool/Special . | . . . Unused Backups 12 | . 5 7 Power . | . . . Propulsion . | . . . Utility 9 | . 5 4 Weapon 3 | . . 3 Tool/Special . | . . . Average Slot Usage (%) 95 | . 99 89 Engine 13 | . 14 12 Treads 24 | . 28 18 Storage 14 | . 14 14 Processor 11 | . 13 9 Protection 2 | . . 5 Energy Gun 2 | . 5 . Energy Cannon 4 | . 4 5 Ballistic Gun 17 | . 14 21 Launcher 2 | . 2 1 Peak Build Rating 16 | 6 11 16 Average Rating 9 | 4 8 11 On Entrance 5 | . 6 11 Naked Turns . | . . . Heaviest Build 37 | 14 31 37 Greatest Support 40 | 40 40 40 Greatest Overweight (x) 1 | . . 1 Average Overweight (x) . | . . . Largest Inventory Capacity 15 | 8 15 15 Average Capacity 12 | 7 11 15 Most Carried 15 | 4 15 15 Average Carried 11 | 1 10 13 Final Capacity 15 | 8 15 15 Final Carried 15 | 4 15 13 Class Distribution -------------------- 100% | Mutant Dominant Class ---------------- Mutant | -10/Materials Mutant | -10/Subcaves Resources | -11 -10 -10 ----------- Run | Yrd Mat Sub Matter Collected 1373 | 300 641 432 Remotely . | . . . Salvage Created 1390 | 110 825 455 Parts 87 | 10 41 36 Haulers Intercepted 2 | . 2 . Recyclers Shooed 1 | . 1 . Parts Field Recycled . | . . . Retrieved Matter . | . . . Parts Self-Destructed 21 | . . 21 Prevented . | . . . Kills | -11 -10 -10 ------- Run | Yrd Mat Sub Combat Hostiles Destroyed 27 | . 11 16 Guns 26 | . 10 16 AOE 1 | . 1 . Classes Destroyed 10 | 2 6 2 Worker 2 | . 2 . Builder 2 | . 2 . Tunneler 2 | 2 . . Hauler 2 | . 2 . Recycler 3 | 1 2 . Operator 1 | . 1 . Watcher 2 | . 2 . Swarmer 6 | . . 6 Grunt 13 | . 11 2 Subdweller 8 | . . 8 Best Kill Streak 5 | 2 5 5 Combat Bots Only 5 | . 5 5 Max Kills in Single Turn 2 | 1 1 2 Gunslinging 1 | . . 1 Exploded 1 | . 1 . Melee . | . . . Uniques/NPCs Destroyed . | . . . Combat | -11 -10 -10 -------- Run | Yrd Mat Sub Hostile Shots Fired 134 | . 46 88 Missed 36 | . 16 20 Hits 98 | . 30 68 Projectile 98 | . 30 68 Critical Strikes 3 | . 2 1 Damage Taken 1693 | . 428 1265 Core 258 | . 39 219 Absorbed by Shields . | . . . Core Remaining (%) 100 | 100 . . Volleys Fired 159 | 10 75 74 Largest 2 | 2 2 2 Hottest 100 | 60 100 90 Shots Fired 274 | 20 129 125 Gun 225 | 20 107 98 Cannon 21 | . 6 15 Launcher 16 | . 4 12 Special 12 | . 12 . Kinetic 182 | 10 74 98 Thermal 65 | 5 45 15 Explosive 16 | . 4 12 Electromagnetic 11 | 5 6 . Robot Hit Streak 24 | 3 9 24 Robot Miss Streak 4 | 3 4 3 Penetration Max . | . . . Secondary Targets 6 | . 3 3 Max Gunslinging Chain 1 | . 1 1 Shots Hit Robots 154 | 8 71 75 Core Hits 62 | 3 33 26 Critical Kills 1 | . 1 . Critical Parts Destroyed 1 | . . 1 Critical Strikes 3 | . 1 2 Destroy 3 | . 1 2 Melee Attacks . | . . . Impact . | . . . Slashing . | . . . Piercing . | . . . Sneak Attacks . | . . . Combat Hostiles . | . . . Follow-up Attacks . | . . . Damage Inflicted 2704 | 102 1178 1424 Guns 2341 | 102 893 1346 Cannons 161 | . 90 71 Explosions 202 | . 195 7 Melee . | . . . Ramming . | . . . Kinetic 1999 | 37 616 1346 Thermal 468 | 23 374 71 Explosive 142 | . 135 7 Electromagnetic 95 | 42 53 . Impact . | . . . Slashing . | . . . Piercing . | . . . Highest Corruption . | . . . Average Corruption . | . . . Corruption Purged . | . . . Corruption Blocked . | . . . Overload Shots . | . . . Overflow Damage 10 | . 4 6 Projectiles . | . . . Explosions 10 | . 4 6 Melee . | . . . Knockbacks . | . . . Impact . | . . . Kinetic . | . . . Secondary . | . . . Self-Inflicted Damage 102 | . 35 67 Shots 4 | . 1 3 Rammed . | . . . Targets Rammed . | . . . Kicked . | . . . Crushed . | . . . Highest Temperature 255 | . 255 8 Average Temperature 37 | . 37 8 Received Heat Transfer 474 | . 252 222 Siege Activations . | . . . Martial Activations . | . . . Shielding Activations . | . . . Robots Disrupted . | . . . Combat Hostiles . | . . . Robots Corrupted . | . . . Combat Hostiles . | . . . Parts Fried . | . . . Impact Corruptions . | . . . Robots Melted . | . . . Combat Hostiles . | . . . Parts Melted 3 | . . 3 Heat Transferred 1004 | 50 806 148 Parts Sabotaged . | . . . Parts Stolen . | . . . Parts Stripped . | . . . Power Chain Reactions 1 | . 1 . Alert | -11 -10 -10 ------- Run | Yrd Mat Sub Maximum Alert Level . | . . . Low Security (%) 100 | 100 100 . Level 1 . | . . . Level 2 . | . . . Level 3 . | . . . Level 4 . | . . . Level 5 . | . . . High Security . | . . . Max Security . | . . . Peak Influence 106 | 5 106 . Initial . | . . . Average 24 | . 26 . Influence Increases 775 | 15 490 270 Destroy 0b10 Robot/C 380 | . 220 160 Destroy 0b10 Robot/NC 70 | 15 55 . Destroy Leader 78 | . 58 20 Successful Hack 30 | . 30 . Select Force Hacks 60 | . 60 . Disable Machine 30 | . 30 . Destroy Structure 37 | . 37 . Lose Combat Pursuer 90 | . . 90 Influence Decreases 743 | 15 437 291 Entered New Map 26 | . . 26 Time Decay 665 | 15 427 223 Lost Part 52 | . 10 42 Squads Dispatched 3 | . 3 . Investigation 2 | . 2 . Extermination . | . . . Reinforcement 1 | . 1 . Assault . | . . . Garrison . | . . . Intercept . | . . . Searches Triggered . | . . . Construction Impeded . | . . . Haulers Reinforced . | . . . Active Scanning Responses . | . . . Cargo Convoy Interrupts . | . . . Stealth | -11 -10 -10 --------- Run | Yrd Mat Sub Distress Signals . | . . . Communications Jammed . | . . . Distress Signals . | . . . Times Spotted 44 | . 24 20 Peak Tracking Total 6 | . 6 6 Tactical Retreats 3 | . . 3 Traps | -11 -10 -10 ------- Run | Yrd Mat Sub Traps Triggered 1 | . 1 . Indirectly . | . . . Trap Hack Attempts . | . . . Triggered . | . . . Disarmed . | . . . Reprogrammed . | . . . Reused . | . . . Traps Extracted . | . . . Installed . | . . . Triggered . | . . . Machines | -11 -10 -10 ---------- Run | Yrd Mat Sub Machines Disabled 3 | . 3 . Max in Single Turn 1 | . 1 . Machines Repaired . | . . . Machines Dismantled . | . . . Machines Sabotaged . | . . . Overloaded Fab Kills . | . . . Hacking | -11 -10 -10 --------- Run | Yrd Mat Sub Machines Accessed 10 | . 10 . Terminals 8 | . 8 . Fabricators . | . . . Repair Stations . | . . . Recycling Units 2 | . 2 . Scanalyzers . | . . . Garrison Access . | . . . Total Hacks 27 | . 27 . Successful 15 | . 15 . Failed 11 | . 11 . Catastrophic . | . . . Database Lockouts 1 | . 1 . Manual 24 | . 24 . Terminals 23 | . 23 . Fabricators . | . . . Repair Stations . | . . . Recycling Units 4 | . 4 . Scanalyzers . | . . . Garrison Access . | . . . Terminal Hacks 5 | . 5 . Robot Analysis 2 | . 2 . Terminal Index 1 | . 1 . Registered Components 1 | . 1 . Zone Layout 1 | . 1 . Fabricator Hacks . | . . . Repair Station Hacks . | . . . Recycling Unit Hacks . | . . . Scanalyzer . | . . . Garrison Access Hacks . | . . . Unauthorized Hacks 8 | . 8 . Terminals 6 | . 6 . Operators 1 | . 1 . Skim 5 | . 5 . Fabricators . | . . . Repair Stations . | . . . Recycling Units 2 | . 2 . Tunnel 2 | . 2 . Scanalyzers . | . . . Garrison Access . | . . . Data Cores Recovered 1 | . 1 . Used 1 | . 1 . Hacking Detections 7 | . 7 . Full Trace Events . | . . . Feedback Events . | . . . Feedback Blocked . | . . . Robot Schematics Acquired . | . . . Robots Built . | . . . Authchips . | . . . Time . | . . . Total Robot Build Rating . | . . . Part Schematics Acquired . | . . . Parts Built . | . . . Authchips . | . . . Time . | . . . Total Part Build Rating . | . . . Parts Repaired . | . . . Time . | . . . Parts Recycled . | . . . Recycled Matter . | . . . Retrieved Matter . | . . . Retrieved Components . | . . . Parts Scanalyzed . | . . . Part Schematics Acquired . | . . . Parts Damaged . | . . . Bothacking | -11 -10 -10 ------------ Run | Yrd Mat Sub Used RIF Installer . | . . . Robots Hacked . | . . . Non-combat . | . . . Combat . | . . . Robot Hacks Applied . | . . . Relay Couplers Released . | . . . Fabnet Peak Effective % . | . . . Robots Rewired . | . . . Allies Hacked . | . . . Hacks Repelled . | . . . Allies | -11 -10 -10 -------- Run | Yrd Mat Sub Total Allies . | . . . Largest Group . | . . . Highest-Rated Group . | . . . Highest-Rated Ally . | . . . Total Orders . | . . . Ally Attacks . | . . . Total Damage . | . . . Kills . | . . . Allies Corrupted . | . . . Allies Melted . | . . . Intel | -11 -10 -10 ------- Run | Yrd Mat Sub Active Infowar (turns) . | . . . Robot Analysis Total 2 | . 2 . Derelict Logs Recovered 2 | . . 2 Drone Launches . | . . . Drone Recoveries . | . . . Exploration | -11 -10 -10 ------------- Run | Yrd Mat Sub Turns Passed 3336 | 152 1792 1392 Spaces Moved 1555 | 68 907 580 Core 1 | 1 . . Treads 1489 | 67 907 515 Legs . | . . . Wheels 65 | . . 65 Hover . | . . . Flight . | . . . Fastest Speed 50 | 50 160 110 Average Speed 172 | 158 160 193 Slowest Speed 240 | 160 160 240 Overloaded Moves . | . . . Propulsion Burnouts . | . . . Robots Hopped . | . . . Potential Cave-ins . | . . . Cave-ins Triggered . | . . . Exploration Rate (%) 41 | 6 99 20 Regions Visited 2 Branch Regions 1 Pre-discovered Areas 5 | . 4 1 Known Exits Taken . | . . . Unknown Exits Taken 2 | 1 1 . Scrap Searched 1 | . . 1 Spaces Dug 15 | . 9 6 Terrain Destroyed 104 | . 35 69 Melee . | . . . Projectile 12 | . 12 . AOE 92 | . 23 69 Terrain Rammed . | . . . Walls Destroyed . | . . . Machines Disabled . | . . . Actions | -11 -10 -10 --------- Run | Yrd Mat Sub Total 1923 | 89 1104 730 Wait 125 | 1 72 52 Move 1553 | 67 906 580 Hop . | . . . Pick Up 29 | 4 22 3 Fast Attach 15 | 6 2 7 Attach 7 | . 2 5 Detach 1 | . 1 . Swap 16 | 1 11 4 Drop 18 | . 13 5 Fire 159 | 10 75 74 Melee . | . . . Ram . | . . . Kick . | . . . Crush . | . . . Escape Stasis . | . . . Rewire . | . . . Trap . | . . . Miscellaneous . | . . . Route ------- -11/Scrapyard -10/Materials (discovered 5 exits: *Mat x3 / [*Min] / [*Sub]) -10/Subcaves (discovered 3 exits: *Mat x2 / [*Scr]) History --------- Turn | Location | Event 7 | -11/Scrapyard | Discovered new exit (range 15) 153 | -11/Scrapyard | Entered Materials 320 | -10/Materials | Build established: Mutant 353 | -10/Materials | Discovered new exit (range 11) 484 | -10/Materials | Discovered new exit (range 9) 1010 | -10/Materials | Discovered new exit (range 15) 1164 | -10/Materials | Central database locked down 1219 | -10/Materials | Discovered new exit (range 4) 1258 | -10/Materials | Identified exit to Materials 1258 | -10/Materials | Learned location of 2 exits from Materials 1290 | -10/Materials | Learned location of 2 exits from Subcaves 1323 | -10/Materials | Learned Storage stockpile data 1324 | -10/Materials | Learned location of 2 exits from Materials 1355 | -10/Materials | Learned Storage stockpile data 1945 | -10/Materials | Entered Subcaves 1946 | -10/Subcaves | Approached by a straggling Scientist 1946 | -10/Subcaves | Identified exit to Materials 1950 | -10/Subcaves | Ambushed by Subdwellers from Twisted Machinery 2072 | -10/Subcaves | Disturbed a concealed Subdweller 2073 | -10/Subcaves | Core integrity fell below 50% 2344 | -10/Subcaves | Scientist uncovered a shortcut to Scraptown 2596 | -10/Subcaves | Ambushed by Subdweller buried in earth 3161 | -10/Subcaves | Shifting Twisted Machinery released Flamer 3173 | -10/Subcaves | Shifting Twisted Machinery released Sub. Monowheel 3302 | -10/Subcaves | Core integrity fell below 20% 3337 | -10/Subcaves | Destroyed by EU-7TM(R) with Subdweller Laser Last Messages --------------- Flamer falls loose from the Twisted Machinery. Sub. Monowheel falls loose from the Twisted Machinery. 03201_ Acquired Sub. Monowheel. 03223_ X3-TX0(u) deconstructs Twisted Machinery. 03258_ L9-QFA(R) destroyed. 03269_ Acquired 14 matter. 03290_ QN-L1X(R) affixes Scrap Shield Fragment to Scrap Shield. 03290_ Lgt. Treads destroyed. 03296_ SJ-8QE(R) affixes Scrap Shield Fragment to Scrap Shield. 03297_ Sub. Power Source destroyed. 03299_ SJ-8QE(R) suffers critical hit (Destroy). 03302_ SJ-8QE(R) destroyed. 03302_ Switching to secondary target: QN-L1X(R). 03305_ Sub. Machine Gun shoots sparks and powers down. 03307_ Sub. Machine Gun destroyed. 03311_ QN-L1X(R) affixes Scrap Shield Fragment to Scrap Shield. 03316_ Sub. Power Source melted. 03316_ QN-L1X(R) destroyed. 03319_ Acquired Sub. Monowheel. 03323_ Acquired 17 matter. Map ----- +----------------------------------------------------+ | ?????????????????????????????????????????????????? | | ?????????????????????????????????????????????????? | | ?????????????????????????????????????????????????? | | ?????????????????????????????????????????????????? | | ?????????????????????????????????????????????????? | | ?????????????????????????????????????????????????? | | ?????????????????????????????????????????????????? | | ?????????????????????????????????????????????????? | | ?????????????????????????????????????????????????? | | ?????????????????????????????????????????????????? | | ?????????????????????????????????????????????????? | | ?????????????????????"???????????????????????????? | | ???????????????????# ??????????????????????????? | | ??????????????????? ??????????????????????????? | | ???????????????????? ??????????????????????????? | | ???????????????????? ?????????????#????????????? | | ????????????????????? ??????????? #????????????? | | ????????????????????? R ??????????? #?##?????????? | | ?????????????????????# ?????????? # ?????????? | | ?????????????????????# ???????### ?????????? | | ???????????????#?????# ?????? ??????????? | | ???????????????# ?## ?????? ???????????? | | ????????????????# # ?##### ??????????????? | | ???????????????## ## # %!#????????????????? | | ???????????????# < ! #????????????????? | | ???????????????# @ #????????????????? | | ???????????????# ## # ##???????????????? | | ???????????????# ?######## #???????????????? | | ???????????????# ##??###?# #???????????????? | | ????????????????# #### #### % #???????????????? | | ????????????????# ###%" "#???????????????? | | ????????????????# ##&"" ##??????????????? | | ????????????????# !" "#####??????????? | | ?????????????????# "" """ #?????????? | | ?????????????????## """" #????????? | | ?????????????????## "" #????????? | | ??????????????#### "" ###### #????????? | | ?????????????## ### ##???????????????? | | ?????????????# #??##????????????????? | | ?????????????## # ## "###??????????????????? | | ??????????????# ## ### """"#??????????????????? | | ??????????????# ####?## "" #??????????"???????? | | ??????????????## ##???# " ##?????? ? "#??????? | | ???????????????# #???## "" #????? ???????? | | ???????????????# #????# " #???? ????????? | | ???????????????# ###### "#???? ?????????? | | ???????????????# " ### ###???# ##????????? | | ???????????????## " # ##????# ?????????? | | ????????????????# " #??### ??????????? | | ???????????????## " # % #?## ???????????? | +----------------------------------------------------+ Best States ------------- Heat Dissipation 25 Energy Generation 10 Energy Capacity 250 Matter Stores 300 Matter Capacity 300 Sight Range 16 Terrain Scan Density 10 Armor Coverage 100 Evasion (%) 40 Targeting Accuracy 5 Recoil Reduction 2 Item Schematics ----------------- None Robot Schematics ------------------ None Fabricated ------------ Nothing Repaired ---------- Nothing Alien Tech Used ----------------- None Achievements -------------- None Challenges ------------ None Game ------ Seed ShadingSensorFlail Manual? 0 Play Time 00:20:27 Cumulative 269.7 hours Start 2025.05.26 @ 00:55:02 End 2025.05.26 @ 01:13:47 Sessions 1 Manual Loads 0 Difficulty Rogue Special Mode None Game No. 129 Rogue 129 Adventurer 0 Explorer 0 Win Type - Total 1 Types 0/0/0/0/1/0/0/0/0/0 Lore% 65 Gallery% 73 Achievement% 64 Wizard Run 0 Options --------- Layout 0 ASCII 0 Keyboard 0 Movement Mouse Keybinds 0 Fullscreen 1 Font 24/Smallcaps Map View 183x50 Zoom Use 0% Tactical HUD 1 Map Filters NONE Filters NONE Steam 0 RUN: e46d9598-8c70-46e7-8db4-bc72c514b1e7